[Event "Late-Titled-Tuesday-Blitz-October-24-2023"]
[Site "Chess.com"]
[Date "2023.10.24"]
[Round "2"]
[White "HaryKane"]
[Black "alfianasybullina"]
[Result "1-0"]
[WhiteElo "2516"]
[BlackElo "2289"]
[TimeControl "180+1"]
[EndTime "14:16:25 PDT"]
[Termination "HaryKane won by resignation"]

1. e4 {[%clk 0:03:00.9]} 1... c6 {[%clk 0:02:59.1]} 2. d4 {[%clk 0:02:57.6]}
2... d5 {[%clk 0:02:59.6]} 3. exd5 {[%clk 0:02:54.5]} 3... cxd5 {[%clk
0:03:00.5]} 4. Bd3 {[%clk 0:02:53.2]} 4... Nc6 {[%clk 0:03:01.1]} 5. c3 {[%clk
0:02:53.4]} 5... Nf6 {[%clk 0:03:01.6]} 6. Ne2 {[%clk 0:02:46.7]} 6... Bg4
{[%clk 0:02:59.6]} 7. f3 {[%clk 0:02:40.6]} 7... Bh5 {[%clk 0:02:58.6]} 8. O-O
{[%clk 0:02:34.7]} 8... e6 {[%clk 0:02:58.8]} 9. Be3 {[%clk 0:02:26.1]} 9... Bd6
{[%clk 0:02:55.4]} 10. Nd2 {[%clk 0:02:22.4]} 10... O-O {[%clk 0:02:54.6]} 11.
Nf4 {[%clk 0:02:22.3]} 11... Bg6 {[%clk 0:02:54.7]} 12. Nxg6 {[%clk 0:02:22]}
12... hxg6 {[%clk 0:02:55.6]} 13. Bf2 {[%clk 0:02:15.8]} 13... Re8 {[%clk
0:02:55.6]} 14. Re1 {[%clk 0:02:15.4]} 14... Rc8 {[%clk 0:02:55.7]} 15. b4
{[%clk 0:02:02.7]} 15... a6 {[%clk 0:02:54.2]} 16. a4 {[%clk 0:02:02.4]} 16...
Qc7 {[%clk 0:02:53.5]} 17. h3 {[%clk 0:01:53.4]} 17... Ne7 {[%clk 0:02:52.3]}
18. Rc1 {[%clk 0:01:49.6]} 18... Bh2+ {[%clk 0:02:43.4]} 19. Kh1 {[%clk
0:01:47.9]} 19... Bd6 {[%clk 0:02:44.3]} 20. Nb3 {[%clk 0:01:44.3]} 20... Qd7
{[%clk 0:02:39.1]} 21. a5 {[%clk 0:01:42.6]} 21... Nf5 {[%clk 0:02:34.2]} 22.
Nc5 {[%clk 0:01:33.9]} 22... Qc7 {[%clk 0:02:33]} 23. Bxf5 {[%clk 0:01:30.6]}
23... gxf5 {[%clk 0:02:31.2]} 24. Nd3 {[%clk 0:01:13.8]} 24... Nh5 {[%clk
0:02:25.7]} 25. g4 {[%clk 0:01:08.6]} 25... Ng3+ {[%clk 0:02:23]} 26. Bxg3
{[%clk 0:01:06.9]} 26... Bxg3 {[%clk 0:02:22.2]} 27. Rg1 {[%clk 0:01:04.6]}
27... fxg4 {[%clk 0:02:21.9]} 28. fxg4 {[%clk 0:01:00.4]} 28... Bh4 {[%clk
0:02:18.1]} 29. Qf3 {[%clk 0:00:59.3]} 29... g6 {[%clk 0:02:07.4]} 30. g5 {[%clk
0:00:55.4]} 30... Kg7 {[%clk 0:01:51.9]} 31. Qf6+ {[%clk 0:00:54.8]} 31... Kg8
{[%clk 0:01:52.1]} 32. Rg4 {[%clk 0:00:51.6]} 32... Bg3 {[%clk 0:01:51.6]} 33.
Rg1 {[%clk 0:00:49.4]} 33... Bd6 {[%clk 0:01:50.5]} 34. Rh4 {[%clk 0:00:47.7]}
1-0

[Event "Late-Titled-Tuesday-Blitz-October-24-2023"]
[Site "Chess.com"]
[Date "2023.10.24"]
[Round "2"]
[White "NMJeevanK"]
[Black "Bauman_Guy"]
[Result "0-1"]
[WhiteElo "2601"]
[BlackElo "2914"]
[TimeControl "180+1"]
[EndTime "14:16:26 PDT"]
[Termination "Bauman_Guy won by checkmate"]

1. e4 {[%clk 0:03:00.9]} 1... c5 {[%clk 0:03:00]} 2. Nc3 {[%clk 0:03:00.3]} 2...
d6 {[%clk 0:02:59.9]} 3. f4 {[%clk 0:02:58.8]} 3... g6 {[%clk 0:02:59.9]} 4. Nf3
{[%clk 0:02:58.6]} 4... Bg7 {[%clk 0:03:00.1]} 5. Bb5+ {[%clk 0:02:59.3]} 5...
Bd7 {[%clk 0:02:58.4]} 6. O-O {[%clk 0:02:51]} 6... Nc6 {[%clk 0:02:54.8]} 7.
Bc4 {[%clk 0:02:48.7]} 7... Na5 {[%clk 0:02:50.7]} 8. Be2 {[%clk 0:02:41.8]}
8... Nc6 {[%clk 0:02:48.3]} 9. Bc4 {[%clk 0:02:42]} 9... Na5 {[%clk 0:02:47.7]}
10. Be2 {[%clk 0:02:42.1]} 10... Nf6 {[%clk 0:02:47.5]} 11. e5 {[%clk
0:02:31.5]} 11... dxe5 {[%clk 0:02:39.4]} 12. fxe5 {[%clk 0:02:19.7]} 12... Ng4
{[%clk 0:02:32.8]} 13. e6 {[%clk 0:02:16.2]} 13... Bxe6 {[%clk 0:02:28.6]} 14.
d3 {[%clk 0:01:43.7]} 14... O-O {[%clk 0:02:11.7]} 15. Ne4 {[%clk 0:01:31.9]}
15... Bd5 {[%clk 0:01:30.5]} 16. Nxc5 {[%clk 0:01:04.4]} 16... Qc7 {[%clk
0:01:08.1]} 17. d4 {[%clk 0:00:50.3]} 17... Bxf3 {[%clk 0:01:07]} 18. Bxf3
{[%clk 0:00:48.7]} 18... Qxh2# {[%clk 0:01:05.6]} 0-1

[Event "Late-Titled-Tuesday-Blitz-October-24-2023"]
[Site "Chess.com"]
[Date "2023.10.24"]
[Round "2"]
[White "PapaieDudu"]
[Black "NM_NHTT"]
[Result "0-1"]
[WhiteElo "2338"]
[BlackElo "2585"]
[TimeControl "180+1"]
[EndTime "14:16:35 PDT"]
[Termination "NM_NHTT won by resignation"]

1. e4 {[%clk 0:03:00.9]} 1... c5 {[%clk 0:02:59.8]} 2. Nf3 {[%clk 0:03:01]} 2...
g6 {[%clk 0:02:59.8]} 3. d4 {[%clk 0:03:01.2]} 3... cxd4 {[%clk 0:03:00.7]} 4.
Nxd4 {[%clk 0:03:02]} 4... Bg7 {[%clk 0:03:00.8]} 5. Nc3 {[%clk 0:03:02.9]} 5...
Nc6 {[%clk 0:03:01]} 6. Be3 {[%clk 0:03:02.8]} 6... Nf6 {[%clk 0:03:01.3]} 7.
Bc4 {[%clk 0:03:02.2]} 7... O-O {[%clk 0:03:01.4]} 8. Bb3 {[%clk 0:03:02.6]}
8... a5 {[%clk 0:03:00.7]} 9. a3 {[%clk 0:03:01]} 9... d6 {[%clk 0:02:53.8]} 10.
h3 {[%clk 0:02:59.3]} 10... Bd7 {[%clk 0:02:52.6]} 11. O-O {[%clk 0:02:59.2]}
11... Nxd4 {[%clk 0:02:52.5]} 12. Bxd4 {[%clk 0:02:59.3]} 12... b5 {[%clk
0:02:53.1]} 13. Qd3 {[%clk 0:02:56]} 13... Rb8 {[%clk 0:02:48.6]} 14. Rad1
{[%clk 0:02:53.2]} 14... a4 {[%clk 0:02:42.3]} 15. Ba2 {[%clk 0:02:50.4]} 15...
b4 {[%clk 0:02:38.5]} 16. axb4 {[%clk 0:02:51.3]} 16... Rxb4 {[%clk 0:02:38.3]}
17. e5 {[%clk 0:02:46.6]} 17... Ne8 {[%clk 0:02:33.4]} 18. Nd5 {[%clk
0:02:40.7]} 18... Rxd4 {[%clk 0:02:28.4]} 19. Qxd4 {[%clk 0:02:41.6]} 19... Bxe5
{[%clk 0:02:28.4]} 20. Qh4 {[%clk 0:02:34.7]} 20... Nf6 {[%clk 0:02:23.6]} 21.
Ne3 {[%clk 0:02:24.2]} 21... Bxb2 {[%clk 0:02:14.4]} 22. Ra1 {[%clk 0:02:17.3]}
22... Bxa1 {[%clk 0:02:13.4]} 23. Rxa1 {[%clk 0:02:17.6]} 23... Qc7 {[%clk
0:02:03.5]} 24. c4 {[%clk 0:02:15.6]} 24... Rb8 {[%clk 0:02:02]} 25. g4 {[%clk
0:02:13.7]} 25... Qc5 {[%clk 0:01:57.3]} 26. g5 {[%clk 0:02:13.8]} 26... Nh5
{[%clk 0:01:53.2]} 27. Nd5 {[%clk 0:02:13.1]} 27... Kf8 {[%clk 0:01:43.5]} 28.
Re1 {[%clk 0:01:59.3]} 28... Be6 {[%clk 0:01:37.3]} 29. Ne3 {[%clk 0:01:45]}
29... Rb2 {[%clk 0:01:33]} 30. Bb1 {[%clk 0:01:44.6]} 30... a3 {[%clk
0:01:32.3]} 31. Qe4 {[%clk 0:01:42]} 31... Kg7 {[%clk 0:01:19.3]} 32. Qa8 {[%clk
0:01:18.5]} 32... Qxg5+ {[%clk 0:01:16.4]} 33. Ng2 {[%clk 0:01:17.7]} 33... Bxh3
{[%clk 0:01:10.5]} 34. f4 {[%clk 0:01:15.7]} 0-1

[Event "Late-Titled-Tuesday-Blitz-October-24-2023"]
[Site "Chess.com"]
[Date "2023.10.24"]
[Round "2"]
[White "Hasangatin_Ramil"]
[Black "Inepton_Fermion"]
[Result "1-0"]
[WhiteElo "2699"]
[BlackElo "2360"]
[TimeControl "180+1"]
[EndTime "14:16:39 PDT"]
[Termination "Hasangatin_Ramil won by resignation"]

1. e4 {[%clk 0:02:58.7]} 1... c5 {[%clk 0:03:00.3]} 2. Nf3 {[%clk 0:02:56.1]}
2... e6 {[%clk 0:03:00.4]} 3. g3 {[%clk 0:02:55.8]} 3... Nc6 {[%clk 0:02:58.2]}
4. Bg2 {[%clk 0:02:56.2]} 4... d5 {[%clk 0:02:58.9]} 5. exd5 {[%clk 0:02:56.2]}
5... exd5 {[%clk 0:02:59.8]} 6. d4 {[%clk 0:02:56.4]} 6... Nf6 {[%clk 0:02:52]}
7. O-O {[%clk 0:02:56.6]} 7... cxd4 {[%clk 0:02:48.1]} 8. Nxd4 {[%clk
0:02:55.9]} 8... Be7 {[%clk 0:02:48.8]} 9. c4 {[%clk 0:02:54.1]} 9... Bg4 {[%clk
0:02:20]} 10. Qa4 {[%clk 0:02:49.5]} 10... Bd7 {[%clk 0:02:16.5]} 11. cxd5
{[%clk 0:02:47.5]} 11... Nb4 {[%clk 0:02:04.6]} 12. Qb3 {[%clk 0:02:41.2]} 12...
a5 {[%clk 0:01:49.2]} 13. d6 {[%clk 0:02:30.1]} 13... Bxd6 {[%clk 0:01:41.7]}
14. Re1+ {[%clk 0:02:29.3]} 14... Be7 {[%clk 0:01:40.4]} 15. Qe3 {[%clk
0:01:57.8]} 15... Nbd5 {[%clk 0:01:18]} 16. Qe5 {[%clk 0:01:46.9]} 16... Bc6
{[%clk 0:01:12.1]} 17. Nf5 {[%clk 0:01:40.6]} 17... g6 {[%clk 0:00:47.6]} 18.
Bxd5 {[%clk 0:01:19.4]} 1-0

[Event "Late-Titled-Tuesday-Blitz-October-24-2023"]
[Site "Chess.com"]
[Date "2023.10.24"]
[Round "2"]
[White "tteshan"]
[Black "thechessnoob12345"]
[Result "1-0"]
[WhiteElo "2513"]
[BlackElo "2281"]
[TimeControl "180+1"]
[EndTime "14:16:47 PDT"]
[Termination "tteshan won by resignation"]

1. d4 {[%clk 0:02:55.8]} 1... Nf6 {[%clk 0:02:59.6]} 2. c4 {[%clk 0:02:56.4]}
2... c5 {[%clk 0:03:00]} 3. d5 {[%clk 0:02:56.7]} 3... e6 {[%clk 0:03:00.4]} 4.
Nc3 {[%clk 0:02:56.5]} 4... exd5 {[%clk 0:03:00.7]} 5. cxd5 {[%clk 0:02:57.4]}
5... d6 {[%clk 0:03:01.2]} 6. e4 {[%clk 0:02:57.9]} 6... g6 {[%clk 0:03:01.6]}
7. f4 {[%clk 0:02:58.6]} 7... Bg7 {[%clk 0:03:02]} 8. Bb5+ {[%clk 0:02:59.3]}
8... Nfd7 {[%clk 0:03:01.8]} 9. a4 {[%clk 0:02:59.9]} 9... O-O {[%clk
0:03:01.4]} 10. Nf3 {[%clk 0:03:00.5]} 10... a6 {[%clk 0:02:59.8]} 11. Be2
{[%clk 0:02:59.1]} 11... Re8 {[%clk 0:02:59]} 12. O-O {[%clk 0:02:59.7]} 12...
Qc7 {[%clk 0:02:52.9]} 13. Be3 {[%clk 0:02:58.1]} 13... c4 {[%clk 0:02:52]} 14.
Bd4 {[%clk 0:02:55.5]} 14... Bf8 {[%clk 0:02:28.3]} 15. e5 {[%clk 0:02:49.4]}
15... dxe5 {[%clk 0:02:24.2]} 16. fxe5 {[%clk 0:02:48.4]} 16... Bc5 {[%clk
0:02:20]} 17. Bxc5 {[%clk 0:02:44.7]} 17... Qxc5+ {[%clk 0:02:19.9]} 18. Kh1
{[%clk 0:02:43.6]} 18... Nxe5 {[%clk 0:02:18]} 19. Ne4 {[%clk 0:02:41.8]} 19...
Qb6 {[%clk 0:02:05.9]} 20. a5 {[%clk 0:02:28]} 20... Qd8 {[%clk 0:01:58.4]} 21.
Qd4 {[%clk 0:02:07.2]} 21... Nbd7 {[%clk 0:01:40.8]} 22. Nxe5 {[%clk 0:02:04.1]}
22... Nxe5 {[%clk 0:01:40.6]} 23. Nf6+ {[%clk 0:02:02.3]} 23... Kg7 {[%clk
0:01:35.5]} 24. Nxe8+ {[%clk 0:02:01.2]} 24... Qxe8 {[%clk 0:01:36.4]} 25. Rae1
{[%clk 0:02:00]} 25... f6 {[%clk 0:01:35.4]} 26. Bxc4 {[%clk 0:01:57.6]} 26...
Bf5 {[%clk 0:01:35.2]} 27. d6 {[%clk 0:01:52.3]} 27... Qd7 {[%clk 0:01:34]} 28.
Rxe5 {[%clk 0:01:48.2]} 28... fxe5 {[%clk 0:01:34.2]} 29. Qxe5+ {[%clk
0:01:49.1]} 29... Kh6 {[%clk 0:01:34.5]} 30. Rf4 {[%clk 0:01:41.7]} 30... Bg4
{[%clk 0:01:22.4]} 31. Rf7 {[%clk 0:01:32.3]} 1-0

[Event "Late-Titled-Tuesday-Blitz-October-24-2023"]
[Site "Chess.com"]
[Date "2023.10.24"]
[Round "2"]
[White "LiemLe"]
[Black "IgorBjelobrk"]
[Result "1-0"]
[WhiteElo "2961"]
[BlackElo "2607"]
[TimeControl "180+1"]
[EndTime "14:17:00 PDT"]
[Termination "LiemLe won by resignation"]

1. Nf3 {[%clk 0:03:00.9]} 1... c5 {[%clk 0:02:51.4]} 2. c4 {[%clk 0:03:00.4]}
2... Nc6 {[%clk 0:02:49]} 3. Nc3 {[%clk 0:03:00.1]} 3... g6 {[%clk 0:02:48.4]}
4. e3 {[%clk 0:02:59.3]} 4... Bg7 {[%clk 0:02:41.8]} 5. d4 {[%clk 0:02:59.6]}
5... d6 {[%clk 0:02:41.3]} 6. d5 {[%clk 0:02:51.5]} 6... Na5 {[%clk 0:02:39.6]}
7. Bd2 {[%clk 0:02:46.1]} 7... Nf6 {[%clk 0:02:28.5]} 8. Bd3 {[%clk 0:02:35.2]}
8... O-O {[%clk 0:02:27.5]} 9. h3 {[%clk 0:02:35.1]} 9... a6 {[%clk 0:02:24.4]}
10. a4 {[%clk 0:02:33.8]} 10... Qb6 {[%clk 0:02:21.1]} 11. O-O {[%clk
0:02:25.5]} 11... e6 {[%clk 0:01:55.1]} 12. Qc2 {[%clk 0:02:16.3]} 12... exd5
{[%clk 0:01:49.9]} 13. Nxd5 {[%clk 0:02:13.1]} 13... Nxd5 {[%clk 0:01:48.9]} 14.
cxd5 {[%clk 0:02:14]} 14... Nb3 {[%clk 0:01:37.2]} 15. Ra2 {[%clk 0:02:12.6]}
15... Nxd2 {[%clk 0:01:36.9]} 16. Nxd2 {[%clk 0:02:13.5]} 16... Bd7 {[%clk
0:01:21.4]} 17. Nc4 {[%clk 0:02:12.3]} 17... Qc7 {[%clk 0:01:21.7]} 18. a5
{[%clk 0:02:13]} 18... Rae8 {[%clk 0:01:21.7]} 19. Nb6 {[%clk 0:02:11.1]} 19...
Bb5 {[%clk 0:01:20.5]} 20. Rc1 {[%clk 0:02:01.3]} 20... Bxd3 {[%clk 0:01:19.7]}
21. Qxd3 {[%clk 0:02:02.2]} 21... f5 {[%clk 0:01:18]} 22. b4 {[%clk 0:02:01.2]}
22... f4 {[%clk 0:00:54.4]} 23. e4 {[%clk 0:01:59.9]} 23... f3 {[%clk
0:00:50.2]} 24. bxc5 {[%clk 0:02:00.2]} 24... dxc5 {[%clk 0:00:48.9]} 25. d6
{[%clk 0:01:56.5]} 25... Qd8 {[%clk 0:00:42.6]} 26. Rxc5 {[%clk 0:01:53.5]}
26... Be5 {[%clk 0:00:40.7]} 27. d7 {[%clk 0:01:48.4]} 27... Re6 {[%clk
0:00:35.8]} 28. Rc8 {[%clk 0:01:35.2]} 28... Rd6 {[%clk 0:00:21.4]} 29. Qb3+
{[%clk 0:01:31.6]} 29... Kg7 {[%clk 0:00:19.8]} 30. Rxd8 {[%clk 0:01:31.9]} 1-0

[Event "Late-Titled-Tuesday-Blitz-October-24-2023"]
[Site "Chess.com"]
[Date "2023.10.24"]
[Round "2"]
[White "filipluczak05"]
[Black "SpeedofLight0"]
[Result "0-1"]
[WhiteElo "2622"]
[BlackElo "2991"]
[TimeControl "180+1"]
[EndTime "14:17:02 PDT"]
[Termination "SpeedofLight0 won by resignation"]

1. d4 {[%clk 0:02:47.5]} 1... Nf6 {[%clk 0:02:58.8]} 2. Nc3 {[%clk 0:02:45]}
2... d5 {[%clk 0:02:57.9]} 3. Bf4 {[%clk 0:02:44.5]} 3... e6 {[%clk 0:02:57.9]}
4. e3 {[%clk 0:02:42.7]} 4... Bb4 {[%clk 0:02:57.4]} 5. Ne2 {[%clk 0:02:35.4]}
5... O-O {[%clk 0:02:55.9]} 6. a3 {[%clk 0:02:35.1]} 6... Be7 {[%clk 0:02:53]}
7. Ng3 {[%clk 0:02:24.8]} 7... c5 {[%clk 0:02:52.3]} 8. dxc5 {[%clk 0:02:22.3]}
8... Bxc5 {[%clk 0:02:51.6]} 9. e4 {[%clk 0:02:22.7]} 9... Qb6 {[%clk
0:02:47.8]} 10. Qd2 {[%clk 0:02:03.1]} 10... Qxb2 {[%clk 0:02:27.8]} 11. Rb1
{[%clk 0:02:02.2]} 11... Qxa3 {[%clk 0:02:28.1]} 12. Bd3 {[%clk 0:01:40.1]}
12... Bb4 {[%clk 0:02:14.7]} 13. Rb3 {[%clk 0:01:37.9]} 13... Qa1+ {[%clk
0:02:14.1]} 14. Ke2 {[%clk 0:01:33.9]} 14... Qa5 {[%clk 0:02:13.3]} 15. e5
{[%clk 0:01:00.9]} 15... Nc6 {[%clk 0:02:08.3]} 16. exf6 {[%clk 0:00:49.3]}
16... Nd4+ {[%clk 0:02:07.9]} 17. Kf1 {[%clk 0:00:40.2]} 17... Nxb3 {[%clk
0:02:07.1]} 18. Bxh7+ {[%clk 0:00:18.4]} 18... Kxh7 {[%clk 0:02:05.4]} 19. Qd3+
{[%clk 0:00:18.3]} 19... g6 {[%clk 0:01:41.9]} 20. Nf5 {[%clk 0:00:17.3]} 20...
Qa6 {[%clk 0:01:25.4]} 21. Nb5 {[%clk 0:00:15.3]} 21... exf5 {[%clk 0:01:22.3]}
22. Qe3 {[%clk 0:00:10.8]} 22... Qxb5+ {[%clk 0:01:17.6]} 0-1

[Event "Late-Titled-Tuesday-Blitz-October-24-2023"]
[Site "Chess.com"]
[Date "2023.10.24"]
[Round "2"]
[White "Good_Knight_Kiss"]
[Black "IlanSchnaider"]
[Result "0-1"]
[WhiteElo "2375"]
[BlackElo "2770"]
[TimeControl "180+1"]
[EndTime "14:17:08 PDT"]
[Termination "IlanSchnaider won on time"]

1. e4 {[%clk 0:03:00.9]} 1... c5 {[%clk 0:02:58.9]} 2. Nf3 {[%clk 0:03:00.6]}
2... d6 {[%clk 0:02:59.2]} 3. d4 {[%clk 0:03:00.7]} 3... cxd4 {[%clk 0:02:59.7]}
4. Nxd4 {[%clk 0:03:01.1]} 4... Nf6 {[%clk 0:03:00.3]} 5. Nc3 {[%clk 0:03:01]}
5... a6 {[%clk 0:03:00.9]} 6. h3 {[%clk 0:03:00.7]} 6... Nc6 {[%clk 0:03:00.2]}
7. g4 {[%clk 0:02:59.4]} 7... g6 {[%clk 0:02:59.9]} 8. Bg2 {[%clk 0:02:58.7]}
8... Bg7 {[%clk 0:02:54.9]} 9. Be3 {[%clk 0:02:59.3]} 9... O-O {[%clk
0:02:49.8]} 10. O-O {[%clk 0:02:57.5]} 10... Nxd4 {[%clk 0:02:41.5]} 11. Bxd4
{[%clk 0:02:57.3]} 11... e5 {[%clk 0:02:42.2]} 12. Be3 {[%clk 0:02:56.4]} 12...
Be6 {[%clk 0:02:42.1]} 13. Qd2 {[%clk 0:02:52.6]} 13... Qc7 {[%clk 0:02:41.8]}
14. Rad1 {[%clk 0:02:50.1]} 14... Rfd8 {[%clk 0:02:41.3]} 15. g5 {[%clk
0:02:36.1]} 15... Nh5 {[%clk 0:02:39.8]} 16. Nd5 {[%clk 0:02:34.8]} 16... Bxd5
{[%clk 0:02:38.6]} 17. exd5 {[%clk 0:02:34.1]} 17... Qc4 {[%clk 0:02:35.4]} 18.
b3 {[%clk 0:02:26.9]} 18... Qh4 {[%clk 0:02:34.4]} 19. c4 {[%clk 0:02:17.1]}
19... Nf4 {[%clk 0:02:33.5]} 20. Bxf4 {[%clk 0:01:59.4]} 20... exf4 {[%clk
0:02:34.4]} 21. Rfe1 {[%clk 0:01:46.5]} 21... Qxg5 {[%clk 0:02:31.9]} 22. Re4
{[%clk 0:01:36.7]} 22... Be5 {[%clk 0:02:31.6]} 23. Rde1 {[%clk 0:01:19.7]}
23... f5 {[%clk 0:02:31.1]} 24. R4e2 {[%clk 0:01:18.9]} 24... Qf6 {[%clk
0:02:30.3]} 25. Qd3 {[%clk 0:01:06.5]} 25... b6 {[%clk 0:02:28.4]} 26. b4 {[%clk
0:01:00.3]} 26... Rac8 {[%clk 0:02:27.9]} 27. c5 {[%clk 0:00:53.5]} 27... bxc5
{[%clk 0:02:26.8]} 28. bxc5 {[%clk 0:00:53.2]} 28... Rxc5 {[%clk 0:02:27]} 29.
Qxa6 {[%clk 0:00:53.3]} 29... Qg5 {[%clk 0:02:26.1]} 30. Rxe5 {[%clk 0:00:34.7]}
30... f3 {[%clk 0:02:02.1]} 31. Re8+ {[%clk 0:00:34.5]} 31... Rxe8 {[%clk
0:02:02.3]} 32. Rxe8+ {[%clk 0:00:32.5]} 32... Kf7 {[%clk 0:02:03]} 33. Qb7+
{[%clk 0:00:10.5]} 33... Kxe8 {[%clk 0:01:59.2]} 34. Qb8+ {[%clk 0:00:09.2]}
34... Kf7 {[%clk 0:01:58.5]} 35. Qb7+ {[%clk 0:00:04.6]} 35... Kg8 {[%clk
0:01:57.3]} 36. Qb8+ {[%clk 0:00:02.1]} 36... Kg7 {[%clk 0:01:58]} 37. Qb7+
{[%clk 0:00:02.2]} 37... Kh6 {[%clk 0:01:58.7]} 0-1

[Event "Late-Titled-Tuesday-Blitz-October-24-2023"]
[Site "Chess.com"]
[Date "2023.10.24"]
[Round "2"]
[White "MikeSailer"]
[Black "ItalianMachine"]
[Result "0-1"]
[WhiteElo "2041"]
[BlackElo "2425"]
[TimeControl "180+1"]
[EndTime "14:17:09 PDT"]
[Termination "ItalianMachine won by resignation"]

1. d4 {[%clk 0:03:00.3]} 1... Nf6 {[%clk 0:02:58.2]} 2. Bg5 {[%clk 0:02:57.3]}
2... d5 {[%clk 0:02:55.8]} 3. Nd2 {[%clk 0:02:55.8]} 3... c5 {[%clk 0:02:55.4]}
4. e3 {[%clk 0:02:54.6]} 4... Nc6 {[%clk 0:02:56]} 5. c3 {[%clk 0:02:54.4]} 5...
e6 {[%clk 0:02:53.7]} 6. Bd3 {[%clk 0:02:47.3]} 6... Bd6 {[%clk 0:02:53.2]} 7.
f4 {[%clk 0:02:42.6]} 7... cxd4 {[%clk 0:02:47.5]} 8. exd4 {[%clk 0:02:40.5]}
8... h6 {[%clk 0:02:47.9]} 9. Bxf6 {[%clk 0:02:37.4]} 9... Qxf6 {[%clk
0:02:47.9]} 10. g3 {[%clk 0:02:34.4]} 10... g5 {[%clk 0:02:47.8]} 11. Ne2 {[%clk
0:02:17.3]} 11... gxf4 {[%clk 0:02:43.2]} 12. O-O {[%clk 0:02:17.4]} 12... h5
{[%clk 0:02:13.9]} 13. Nxf4 {[%clk 0:02:08.9]} 13... Qh6 {[%clk 0:02:14]} 14. h4
{[%clk 0:01:32]} 14... Bd7 {[%clk 0:02:12.2]} 15. Bb5 {[%clk 0:01:05.7]} 15...
O-O-O {[%clk 0:02:10.9]} 16. Qf3 {[%clk 0:00:49.5]} 16... Rdg8 {[%clk
0:02:06.7]} 17. Kh2 {[%clk 0:00:44.2]} 17... Rg4 {[%clk 0:02:02.7]} 18. Bxc6
{[%clk 0:00:24.8]} 18... Bxc6 {[%clk 0:01:57.2]} 19. Rf2 {[%clk 0:00:22.8]}
19... Bxf4 {[%clk 0:01:21.1]} 20. gxf4 {[%clk 0:00:22.6]} 20... Rhg8 {[%clk
0:01:16.3]} 21. Qh3 {[%clk 0:00:19.8]} 21... Qf6 {[%clk 0:01:15.7]} 0-1

[Event "Late-Titled-Tuesday-Blitz-October-24-2023"]
[Site "Chess.com"]
[Date "2023.10.24"]
[Round "2"]
[White "ural58"]
[Black "NotFischer"]
[Result "1-0"]
[WhiteElo "2496"]
[BlackElo "2233"]
[TimeControl "180+1"]
[EndTime "14:17:13 PDT"]
[Termination "ural58 won on time"]

1. e4 {[%clk 0:02:42.5]} 1... c5 {[%clk 0:02:59.4]} 2. b3 {[%clk 0:02:30.6]}
2... Nc6 {[%clk 0:02:58.5]} 3. Bb2 {[%clk 0:02:25.6]} 3... d5 {[%clk 0:02:55]}
4. exd5 {[%clk 0:02:24.7]} 4... Qxd5 {[%clk 0:02:55.9]} 5. Nc3 {[%clk
0:02:24.2]} 5... Qd8 {[%clk 0:02:51.6]} 6. Bb5 {[%clk 0:02:22.5]} 6... Bd7
{[%clk 0:02:51.2]} 7. Nf3 {[%clk 0:02:22.1]} 7... Nf6 {[%clk 0:02:49.8]} 8. Qe2
{[%clk 0:02:20.8]} 8... e6 {[%clk 0:02:47.8]} 9. Ne4 {[%clk 0:02:19.7]} 9... Be7
{[%clk 0:02:33.5]} 10. O-O-O {[%clk 0:02:18.8]} 10... Qb6 {[%clk 0:02:25.5]} 11.
Nxf6+ {[%clk 0:02:14.8]} 11... gxf6 {[%clk 0:02:24.8]} 12. d4 {[%clk 0:02:09.8]}
12... cxd4 {[%clk 0:02:12.6]} 13. Nxd4 {[%clk 0:02:08.9]} 13... Rc8 {[%clk
0:02:00.3]} 14. Nxc6 {[%clk 0:02:05.7]} 14... Bxc6 {[%clk 0:01:56.3]} 15. Bxc6+
{[%clk 0:02:05.8]} 15... Qxc6 {[%clk 0:01:55]} 16. Kb1 {[%clk 0:02:05.6]} 16...
Rg8 {[%clk 0:01:38.4]} 17. g3 {[%clk 0:02:04.8]} 17... b5 {[%clk 0:01:27.9]} 18.
f4 {[%clk 0:02:03.5]} 18... a5 {[%clk 0:01:17.1]} 19. Rd2 {[%clk 0:02:00.5]}
19... a4 {[%clk 0:01:11.3]} 20. Rhd1 {[%clk 0:01:58.7]} 20... a3 {[%clk
0:01:06.3]} 21. Bd4 {[%clk 0:01:57.1]} 21... Rg6 {[%clk 0:00:34.1]} 22. Qh5
{[%clk 0:01:47.3]} 22... f5 {[%clk 0:00:19.6]} 23. Qxh7 {[%clk 0:01:43.2]} 23...
Qe4 {[%clk 0:00:15.4]} 24. Be5 {[%clk 0:01:33.4]} 24... Bf8 {[%clk 0:00:14.2]}
25. Qh4 {[%clk 0:01:31.4]} 25... Be7 {[%clk 0:00:09.3]} 26. Qh8+ {[%clk
0:01:31.2]} 26... Bf8 {[%clk 0:00:09.7]} 27. Bd6 {[%clk 0:01:31.4]} 27... Qe3
{[%clk 0:00:03.2]} 28. Qxf8+ {[%clk 0:01:29.8]} 1-0

[Event "Late-Titled-Tuesday-Blitz-October-24-2023"]
[Site "Chess.com"]
[Date "2023.10.24"]
[Round "2"]
[White "R2D2PTY"]
[Black "balachess2006"]
[Result "0-1"]
[WhiteElo "2293"]
[BlackElo "2560"]
[TimeControl "180+1"]
[EndTime "14:17:17 PDT"]
[Termination "balachess2006 won by resignation"]

1. e4 {[%clk 0:03:00.9]} 1... c5 {[%clk 0:02:59.5]} 2. Nc3 {[%clk 0:03:00.8]}
2... Nc6 {[%clk 0:02:59.6]} 3. Bb5 {[%clk 0:03:01.2]} 3... Nd4 {[%clk
0:02:59.5]} 4. Nf3 {[%clk 0:03:00.9]} 4... a6 {[%clk 0:02:59.6]} 5. Bd3 {[%clk
0:03:00.9]} 5... e6 {[%clk 0:02:58.4]} 6. O-O {[%clk 0:03:00.5]} 6... Nc6 {[%clk
0:02:58.3]} 7. Nd5 {[%clk 0:02:39.2]} 7... Bd6 {[%clk 0:02:40.1]} 8. Ne3 {[%clk
0:02:31.1]} 8... g5 {[%clk 0:02:38.2]} 9. c3 {[%clk 0:02:15.3]} 9... g4 {[%clk
0:02:36.3]} 10. Ne1 {[%clk 0:02:12]} 10... h5 {[%clk 0:02:35.9]} 11. f4 {[%clk
0:02:11.1]} 11... gxf3 {[%clk 0:02:32.8]} 12. Qxf3 {[%clk 0:02:10.1]} 12... Ne5
{[%clk 0:02:31.9]} 13. Qf2 {[%clk 0:02:03.1]} 13... Nh6 {[%clk 0:02:20.1]} 14.
Nc4 {[%clk 0:01:52.6]} 14... Nxc4 {[%clk 0:02:17.1]} 15. Bxc4 {[%clk 0:01:53.5]}
15... Bxh2+ {[%clk 0:02:17.4]} 16. Kh1 {[%clk 0:01:49.1]} 16... Rh7 {[%clk
0:02:04.8]} 17. Be2 {[%clk 0:01:38.1]} 17... Ng4 {[%clk 0:02:02]} 18. Qf3 {[%clk
0:01:23]} 18... Qh4 {[%clk 0:01:55]} 19. Qh3 {[%clk 0:01:23.3]} 19... Nf2+
{[%clk 0:01:55.4]} 20. Rxf2 {[%clk 0:01:04.2]} 20... Qxf2 {[%clk 0:01:56.3]} 21.
Kxh2 {[%clk 0:00:57.3]} 21... Qxe1 {[%clk 0:01:49.1]} 22. Bxh5 {[%clk
0:00:30.1]} 22... Qxe4 {[%clk 0:01:39.2]} 23. d4 {[%clk 0:00:18.3]} 23... b5
{[%clk 0:01:26.3]} 24. Bd2 {[%clk 0:00:08.5]} 24... Bb7 {[%clk 0:01:25.3]} 25.
Rg1 {[%clk 0:00:05.9]} 25... O-O-O {[%clk 0:01:17.2]} 0-1